[Event "Titled Tuesday Blitz July 11 Late 2023"]
[White "Goryachkina, Aleksandra"]
[Black "Vovk, Orest"]
[WhiteFideId "4147103"]
[BlackFideId "14113490"]
[WhiteElo "2669"]
[BlackElo "2530"]
[Result "1/2-1/2"]
[Round "9"]
[TimeControl "180+2"]
[Date "2023.07.11"]
[WhiteClock "0:00:08"]
[BlackClock "0:00:26"]
[Board "49"]

1. e4 {[%clk 0:03:00]}  g5 {[%clk 0:02:59]} 2. d4 {[%clk 0:02:56]}  g4 {[%clk 0:02:57]} 3. h3 {[%clk 0:02:51]}  d5 {[%clk 0:02:57]} 4. e5 {[%clk 0:02:49]}  c5 {[%clk 0:02:57]} 5. c3 {[%clk 0:02:47]}  Nc6 {[%clk 0:02:54]} 6. hxg4 {[%clk 0:02:31]}  Qb6 {[%clk 0:02:54]} 7. dxc5 {[%clk 0:02:21]}  Qxc5 {[%clk 0:02:49]} 8. Rh5 {[%clk 0:02:14]}  Bg7 {[%clk 0:02:26]} 9. Be3 {[%clk 0:01:59]}  Qa5 {[%clk 0:02:25]} 10. f4 {[%clk 0:01:57]}  d4 {[%clk 0:02:06]} 11. Bf2 {[%clk 0:01:17]}  dxc3 {[%clk 0:01:47]} 12. Nxc3 {[%clk 0:01:16]}  Be6 {[%clk 0:01:41]} 13. Qa4 {[%clk 0:01:09]}  Qxa4 {[%clk 0:01:38]} 14. Nxa4 {[%clk 0:01:10]}  Nh6 {[%clk 0:01:05]} 15. g5 {[%clk 0:00:58]}  Ng4 {[%clk 0:00:57]} 16. Nf3 {[%clk 0:00:57]}  Nxf2 {[%clk 0:00:53]} 17. Kxf2 {[%clk 0:00:57]}  O-O-O {[%clk 0:00:43]} 18. Be2 {[%clk 0:00:51]}  h6 {[%clk 0:00:42]} 19. gxh6 {[%clk 0:00:37]}  Rxh6 {[%clk 0:00:39]} 20. Rxh6 {[%clk 0:00:37]}  Bxh6 {[%clk 0:00:40]} 21. g3 {[%clk 0:00:38]}  f6 {[%clk 0:00:33]} 22. exf6 {[%clk 0:00:33]}  exf6 {[%clk 0:00:34]} 23. Nc5 {[%clk 0:00:31]}  Bd5 {[%clk 0:00:33]} 24. Rd1 {[%clk 0:00:21]}  Bf8 {[%clk 0:00:32]} 25. Nb3 {[%clk 0:00:17]}  Bxb3 {[%clk 0:00:27]} 26. Rxd8+ {[%clk 0:00:16]}  Kxd8 {[%clk 0:00:28]} 27. axb3 {[%clk 0:00:16]}  Bc5+ {[%clk 0:00:29]} 28. Kg2 {[%clk 0:00:09]}  Nd4 {[%clk 0:00:29]} 29. Nxd4 {[%clk 0:00:09]}  Bxd4 {[%clk 0:00:29]} 30. Bf3 {[%clk 0:00:08]}  b6 {[%clk 0:00:26]} 1/2-1/2


[Site "https://www.chess.com"]

[Event "Titled Tuesday Blitz July 11 Late 2023"]
[White "Womacka, Mathias"]
[Black "Adewumi, Tanitoluwa"]
[WhiteFideId "4611390"]
[BlackFideId "30966396"]
[WhiteElo "2513"]
[BlackElo "2651"]
[Result "1/2-1/2"]
[Round "9"]
[TimeControl "180+2"]
[Date "2023.07.11"]
[WhiteClock "0:00:02"]
[BlackClock "0:00:06"]
[Board "51"]

1. e4 {[%clk 0:02:55]}  c5 {[%clk 0:02:33]} 2. Nf3 {[%clk 0:02:54]}  e6 {[%clk 0:02:29]} 3. d4 {[%clk 0:02:55]}  cxd4 {[%clk 0:02:24]} 4. Nxd4 {[%clk 0:02:55]}  Nc6 {[%clk 0:02:24]} 5. Nc3 {[%clk 0:02:54]}  Nf6 {[%clk 0:02:24]} 6. Ndb5 {[%clk 0:02:51]}  d6 {[%clk 0:02:24]} 7. Bf4 {[%clk 0:02:51]}  e5 {[%clk 0:02:06]} 8. Bg5 {[%clk 0:02:51]}  a6 {[%clk 0:02:03]} 9. Na3 {[%clk 0:02:50]}  b5 {[%clk 0:02:01]} 10. Nd5 {[%clk 0:02:50]}  Be7 {[%clk 0:02:01]} 11. Nxe7 {[%clk 0:02:48]}  Nxe7 {[%clk 0:02:01]} 12. Bd3 {[%clk 0:02:48]}  Be6 {[%clk 0:01:49]} 13. O-O {[%clk 0:02:34]}  d5 {[%clk 0:01:42]} 14. exd5 {[%clk 0:02:30]}  Bxd5 {[%clk 0:01:39]} 15. c4 {[%clk 0:02:28]}  bxc4 {[%clk 0:01:26]} 16. Nxc4 {[%clk 0:02:29]}  h6 {[%clk 0:01:02]} 17. Be3 {[%clk 0:02:22]}  O-O {[%clk 0:00:37]} 18. Nxe5 {[%clk 0:02:19]}  Nc6 {[%clk 0:00:37]} 19. Nxc6 {[%clk 0:02:08]}  Bxc6 {[%clk 0:00:37]} 20. Rc1 {[%clk 0:02:04]}  Qd5 {[%clk 0:00:36]} 21. f3 {[%clk 0:01:59]}  Rad8 {[%clk 0:00:34]} 22. Bxa6 {[%clk 0:01:43]}  Qxa2 {[%clk 0:00:25]} 23. Qe2 {[%clk 0:01:36]}  Bd5 {[%clk 0:00:13]} 24. b4 {[%clk 0:01:28]}  Qa3 {[%clk 0:00:08]} 25. Bc5 {[%clk 0:01:19]}  Rfe8 {[%clk 0:00:08]} 26. Qd3 {[%clk 0:01:19]}  Qb2 {[%clk 0:00:03]} 27. Qc3 {[%clk 0:01:00]}  Qa2 {[%clk 0:00:02]} 28. Ra1 {[%clk 0:00:52]}  Qb3 {[%clk 0:00:01]} 29. Qxb3 {[%clk 0:00:52]}  Bxb3 {[%clk 0:00:02]} 30. Rfe1 {[%clk 0:00:50]}  Rxe1+ {[%clk 0:00:02]} 31. Rxe1 {[%clk 0:00:49]}  Nd5 {[%clk 0:00:02]} 32. b5 {[%clk 0:00:40]}  Rb8 {[%clk 0:00:02]} 33. Rb1 {[%clk 0:00:28]}  Bc4 {[%clk 0:00:02]} 34. Kf2 {[%clk 0:00:28]}  f6 {[%clk 0:00:01]} 35. Rc1 {[%clk 0:00:21]}  Bxb5 {[%clk 0:00:01]} 36. Rb1 {[%clk 0:00:22]}  Nc7 {[%clk 0:00:01]} 37. Bxb5 {[%clk 0:00:19]}  Rxb5 {[%clk 0:00:01]} 38. Rxb5 {[%clk 0:00:19]}  Nxb5 {[%clk 0:00:02]} 39. Ke3 {[%clk 0:00:18]}  Nc7 {[%clk 0:00:03]} 40. Bd4 {[%clk 0:00:17]}  Ne6 {[%clk 0:00:04]} 41. g4 {[%clk 0:00:16]}  Kf7 {[%clk 0:00:05]} 42. h4 {[%clk 0:00:15]}  Nc7 {[%clk 0:00:05]} 43. Bc5 {[%clk 0:00:13]}  Ke6 {[%clk 0:00:05]} 44. Bf8 {[%clk 0:00:12]}  Ne8 {[%clk 0:00:05]} 45. Ke4 {[%clk 0:00:11]}  Kf7 {[%clk 0:00:06]} 46. Bc5 {[%clk 0:00:11]}  Nc7 {[%clk 0:00:06]} 47. Kf5 {[%clk 0:00:10]}  Ne6 {[%clk 0:00:06]} 48. Be3 {[%clk 0:00:09]}  Nc7 {[%clk 0:00:04]} 49. Ke4 {[%clk 0:00:10]}  Ke6 {[%clk 0:00:05]} 50. h5 {[%clk 0:00:10]}  Nd5 {[%clk 0:00:05]} 51. Bc5 {[%clk 0:00:09]}  Nc3+ {[%clk 0:00:05]} 52. Kd3 {[%clk 0:00:09]}  Nd5 {[%clk 0:00:05]} 53. Bf8 {[%clk 0:00:08]}  Kf7 {[%clk 0:00:06]} 54. Bd6 {[%clk 0:00:08]}  Nb6 {[%clk 0:00:06]} 55. Ke4 {[%clk 0:00:08]}  Nd7 {[%clk 0:00:05]} 56. Bb4 {[%clk 0:00:08]}  Ke6 {[%clk 0:00:05]} 57. Ba3 {[%clk 0:00:07]}  Nb6 {[%clk 0:00:05]} 58. Bb4 {[%clk 0:00:07]}  Nc4 {[%clk 0:00:03]} 59. Bf8 {[%clk 0:00:06]}  Kf7 {[%clk 0:00:03]} 60. Bc5 {[%clk 0:00:07]}  Ne5 {[%clk 0:00:04]} 61. Bd6 {[%clk 0:00:06]}  Nd7 {[%clk 0:00:04]} 62. Bb4 {[%clk 0:00:05]}  g6 {[%clk 0:00:04]} 63. hxg6+ {[%clk 0:00:04]}  Kxg6 {[%clk 0:00:05]} 64. Kf4 {[%clk 0:00:04]}  Ne5 {[%clk 0:00:05]} 65. Bc3 {[%clk 0:00:04]}  Nd3+ {[%clk 0:00:06]} 66. Ke3 {[%clk 0:00:04]}  Nc5 {[%clk 0:00:06]} 67. Kf4 {[%clk 0:00:04]}  Ne6+ {[%clk 0:00:05]} 68. Ke3 {[%clk 0:00:04]}  f5 {[%clk 0:00:05]} 69. gxf5+ {[%clk 0:00:03]}  Kxf5 {[%clk 0:00:06]} 70. Kf2 {[%clk 0:00:04]}  h5 {[%clk 0:00:07]} 71. Bb4 {[%clk 0:00:03]}  Nf4 {[%clk 0:00:07]} 72. Bd6 {[%clk 0:00:03]}  Ne6 {[%clk 0:00:07]} 73. Kg3 {[%clk 0:00:03]}  Kg5 {[%clk 0:00:07]} 74. f4+ {[%clk 0:00:03]}  Kf5 {[%clk 0:00:08]} 75. Kh4 {[%clk 0:00:03]}  Kg6 {[%clk 0:00:08]} 76. f5+ {[%clk 0:00:02]}  Kxf5 {[%clk 0:00:06]} 77. Kxh5 {[%clk 0:00:02]} 1/2-1/2


[Site "https://www.chess.com"]

[Event "Titled Tuesday Blitz July 11 Late 2023"]
[White "Martinez Reyes, Pedro Ramon"]
[Black "Fantinel, Thibault"]
[WhiteFideId "3901807"]
[BlackFideId "663395"]
[WhiteElo "2520"]
[BlackElo "2639"]
[Result "0-1"]
[Round "9"]
[TimeControl "180+2"]
[Date "2023.07.11"]
[WhiteClock "0:00:33"]
[BlackClock "0:01:40"]
[Board "52"]

1. e4 {[%clk 0:03:00]}  c5 {[%clk 0:02:59]} 2. b3 {[%clk 0:02:52]}  g6 {[%clk 0:02:58]} 3. Bb2 {[%clk 0:02:49]}  Nf6 {[%clk 0:02:59]} 4. e5 {[%clk 0:02:46]}  Nd5 {[%clk 0:02:59]} 5. Nc3 {[%clk 0:02:45]}  Nc7 {[%clk 0:02:51]} 6. Nf3 {[%clk 0:02:40]}  Bg7 {[%clk 0:02:51]} 7. h4 {[%clk 0:02:40]}  h6 {[%clk 0:02:50]} 8. Ne4 {[%clk 0:02:36]}  d6 {[%clk 0:02:32]} 9. Bb5+ {[%clk 0:02:32]}  Nxb5 {[%clk 0:02:31]} 10. Qe2 {[%clk 0:02:25]}  Nd4 {[%clk 0:02:22]} 11. Nxd4 {[%clk 0:02:21]}  cxd4 {[%clk 0:02:23]} 12. Nf6+ {[%clk 0:02:21]}  Kf8 {[%clk 0:02:17]} 13. Ne4 {[%clk 0:01:30]}  dxe5 {[%clk 0:02:15]} 14. O-O-O {[%clk 0:01:30]}  Nc6 {[%clk 0:02:13]} 15. h5 {[%clk 0:01:30]}  g5 {[%clk 0:02:12]} 16. f4 {[%clk 0:01:25]}  exf4 {[%clk 0:02:10]} 17. Kb1 {[%clk 0:01:24]}  f5 {[%clk 0:02:06]} 18. Nc5 {[%clk 0:01:24]}  e5 {[%clk 0:02:06]} 19. Ba3 {[%clk 0:01:21]}  Kg8 {[%clk 0:02:05]} 20. Qc4+ {[%clk 0:01:20]}  Kh7 {[%clk 0:02:06]} 21. Qf7 {[%clk 0:01:13]}  Qf6 {[%clk 0:02:06]} 22. Qc7 {[%clk 0:01:11]}  Re8 {[%clk 0:01:59]} 23. Nxb7 {[%clk 0:00:43]}  Bxb7 {[%clk 0:01:48]} 24. Qxb7 {[%clk 0:00:44]}  e4 {[%clk 0:01:42]} 25. Bb2 {[%clk 0:00:37]}  Rab8 {[%clk 0:01:40]} 26. Qa6 {[%clk 0:00:33]}  Nb4 {[%clk 0:01:40]} 0-1


[Site "https://www.chess.com"]

[Event "Titled Tuesday Blitz July 11 Late 2023"]
[White "Martinez Ramirez, Lennis"]
[Black "Mei, Austin"]
[WhiteFideId "3509079"]
[BlackFideId "30948479"]
[WhiteElo "2638"]
[BlackElo "2501"]
[Result "1-0"]
[Round "9"]
[TimeControl "180+2"]
[Date "2023.07.11"]
[WhiteClock "0:00:40"]
[BlackClock "0:00:00"]
[Board "53"]

1. c4 {[%clk 0:03:00]}  Nf6 {[%clk 0:02:57]} 2. Nc3 {[%clk 0:03:00]}  e5 {[%clk 0:02:55]} 3. a3 {[%clk 0:02:58]}  c5 {[%clk 0:02:51]} 4. g3 {[%clk 0:02:50]}  d5 {[%clk 0:02:50]} 5. cxd5 {[%clk 0:02:50]}  Nxd5 {[%clk 0:02:51]} 6. Bg2 {[%clk 0:02:50]}  Nc7 {[%clk 0:02:51]} 7. b4 {[%clk 0:02:48]}  cxb4 {[%clk 0:02:50]} 8. axb4 {[%clk 0:02:49]}  Nc6 {[%clk 0:02:44]} 9. b5 {[%clk 0:02:49]}  Nd4 {[%clk 0:02:43]} 10. e3 {[%clk 0:02:50]}  Nf5 {[%clk 0:02:41]} 11. b6 {[%clk 0:02:37]}  axb6 {[%clk 0:02:35]} 12. Rxa8 {[%clk 0:02:37]}  Nxa8 {[%clk 0:02:35]} 13. Nf3 {[%clk 0:02:32]}  Bd6 {[%clk 0:02:31]} 14. Qa4+ {[%clk 0:02:31]}  Bd7 {[%clk 0:02:31]} 15. Qe4 {[%clk 0:02:32]}  O-O {[%clk 0:01:46]} 16. Qxb7 {[%clk 0:02:14]}  Re8 {[%clk 0:01:22]} 17. O-O {[%clk 0:02:09]}  Ne7 {[%clk 0:01:13]} 18. Ng5 {[%clk 0:02:03]}  Qc7 {[%clk 0:00:49]} 19. Qa6 {[%clk 0:01:42]}  Bc6 {[%clk 0:00:45]} 20. Nb5 {[%clk 0:01:32]}  Qd7 {[%clk 0:00:34]} 21. Nxd6 {[%clk 0:01:10]}  Qxd6 {[%clk 0:00:32]} 22. Ba3 {[%clk 0:01:09]}  Qd7 {[%clk 0:00:21]} 23. Qc4 {[%clk 0:01:03]}  Bd5 {[%clk 0:00:18]} 24. Qd3 {[%clk 0:00:56]}  e4 {[%clk 0:00:02]} 25. Bxe4 {[%clk 0:00:55]}  f5 {[%clk 0:00:02]} 26. Bg2 {[%clk 0:00:46]}  Bc6 {[%clk 0:00:02]} 27. Qxd7 {[%clk 0:00:40]}  Bxd7 {[%clk 0:00:02]} 28. Bxe7 {[%clk 0:00:41]}  Rxe7 {[%clk 0:00:02]} 29. Bxa8 {[%clk 0:00:41]}  h6 {[%clk 0:00:00]} 30. Bd5+ {[%clk 0:00:40]} 1-0


[Site "https://www.chess.com"]

[Event "Titled Tuesday Blitz July 11 Late 2023"]
[White "Flynn, Jacob"]
[Black "FromTexas54"]
[WhiteFideId "2509393"]
[WhiteElo "2475"]
[BlackElo "2558"]
[Result "0-1"]
[Round "9"]
[TimeControl "180+2"]
[Date "2023.07.11"]
[WhiteClock "0:00:00"]
[BlackClock "0:00:03"]
[Board "55"]

1. d4 {[%clk 0:03:00]}  Nf6 {[%clk 0:02:59]} 2. c4 {[%clk 0:03:01]}  g6 {[%clk 0:03:00]} 3. g3 {[%clk 0:03:01]}  Bg7 {[%clk 0:03:00]} 4. Bg2 {[%clk 0:03:01]}  d6 {[%clk 0:03:01]} 5. Nf3 {[%clk 0:03:01]}  O-O {[%clk 0:03:02]} 6. O-O {[%clk 0:03:02]}  Nbd7 {[%clk 0:03:02]} 7. Nc3 {[%clk 0:03:01]}  c6 {[%clk 0:03:03]} 8. e4 {[%clk 0:03:01]}  e5 {[%clk 0:03:04]} 9. h3 {[%clk 0:03:02]}  a5 {[%clk 0:03:03]} 10. Be3 {[%clk 0:03:02]}  a4 {[%clk 0:03:03]} 11. Rc1 {[%clk 0:02:58]}  exd4 {[%clk 0:03:02]} 12. Nxd4 {[%clk 0:02:58]}  Nc5 {[%clk 0:03:01]} 13. Qc2 {[%clk 0:02:55]}  Qa5 {[%clk 0:02:59]} 14. Rfd1 {[%clk 0:02:53]}  Re8 {[%clk 0:02:59]} 15. Kh2 {[%clk 0:02:50]}  Be6 {[%clk 0:02:54]} 16. Bf1 {[%clk 0:02:45]}  h5 {[%clk 0:02:41]} 17. Nf3 {[%clk 0:02:35]}  Rad8 {[%clk 0:02:02]} 18. Bf4 {[%clk 0:02:34]}  Bc8 {[%clk 0:01:57]} 19. Nd2 {[%clk 0:02:28]}  Ne6 {[%clk 0:01:48]} 20. Be3 {[%clk 0:02:28]}  Nc5 {[%clk 0:01:45]} 21. f3 {[%clk 0:02:18]}  h4 {[%clk 0:01:39]} 22. g4 {[%clk 0:02:18]}  Nfd7 {[%clk 0:01:40]} 23. Kg2 {[%clk 0:02:07]}  Qc7 {[%clk 0:01:30]} 24. Be2 {[%clk 0:01:55]}  d5 {[%clk 0:01:29]} 25. cxd5 {[%clk 0:01:54]}  Qg3+ {[%clk 0:01:28]} 26. Kf1 {[%clk 0:01:54]}  Qxh3+ {[%clk 0:01:28]} 27. Ke1 {[%clk 0:01:50]}  Qh1+ {[%clk 0:01:13]} 28. Nf1 {[%clk 0:01:49]}  Be5 {[%clk 0:01:03]} 29. f4 {[%clk 0:01:45]}  Bb8 {[%clk 0:01:02]} 30. e5 {[%clk 0:01:34]}  Nxe5 {[%clk 0:00:41]} 31. fxe5 {[%clk 0:01:34]}  Bxe5 {[%clk 0:00:42]} 32. Bxc5 {[%clk 0:01:30]}  Bxg4 {[%clk 0:00:35]} 33. Bf2 {[%clk 0:00:46]}  Bxc3+ {[%clk 0:00:30]} 34. bxc3 {[%clk 0:00:45]}  Rxe2+ {[%clk 0:00:26]} 35. Qxe2 {[%clk 0:00:45]}  Bxe2 {[%clk 0:00:27]} 36. Kxe2 {[%clk 0:00:46]}  Re8+ {[%clk 0:00:24]} 37. Ne3 {[%clk 0:00:44]}  Qe4 {[%clk 0:00:18]} 38. d6 {[%clk 0:00:45]}  Qc4+ {[%clk 0:00:17]} 39. Kf3 {[%clk 0:00:39]}  Qe4+ {[%clk 0:00:17]} 40. Ke2 {[%clk 0:00:39]}  Rd8 {[%clk 0:00:14]} 41. Rd4 {[%clk 0:00:37]}  Qe6 {[%clk 0:00:14]} 42. Rcd1 {[%clk 0:00:34]}  Qxa2+ {[%clk 0:00:13]} 43. R1d2 {[%clk 0:00:31]}  Qe6 {[%clk 0:00:13]} 44. Bxh4 {[%clk 0:00:29]}  Rd7 {[%clk 0:00:12]} 45. Rxa4 {[%clk 0:00:22]}  Rxd6 {[%clk 0:00:11]} 46. Rxd6 {[%clk 0:00:19]}  Qxd6 {[%clk 0:00:12]} 47. Rd4 {[%clk 0:00:20]}  Qe5 {[%clk 0:00:08]} 48. Kd3 {[%clk 0:00:18]}  Kg7 {[%clk 0:00:08]} 49. Ng4 {[%clk 0:00:16]}  Qf5+ {[%clk 0:00:08]} 50. Kd2 {[%clk 0:00:15]}  g5 {[%clk 0:00:07]} 51. Bg3 {[%clk 0:00:14]}  c5 {[%clk 0:00:07]} 52. Be5+ {[%clk 0:00:14]}  Kg6 {[%clk 0:00:06]} 53. Rd6+ {[%clk 0:00:14]}  Kh5 {[%clk 0:00:06]} 54. Nf6+ {[%clk 0:00:10]}  Kh4 {[%clk 0:00:06]} 55. Nd7 {[%clk 0:00:10]}  g4 {[%clk 0:00:05]} 56. Rh6+ {[%clk 0:00:09]}  Kg5 {[%clk 0:00:05]} 57. Rd6 {[%clk 0:00:09]}  Qf3 {[%clk 0:00:03]} 58. c4 {[%clk 0:00:07]}  g3 {[%clk 0:00:03]} 59. Rd5 {[%clk 0:00:07]}  Qf2+ {[%clk 0:00:02]} 60. Kc3 {[%clk 0:00:06]}  Kh4 {[%clk 0:00:03]} 61. Nf6 {[%clk 0:00:05]}  Qe1+ {[%clk 0:00:03]} 62. Kb3 {[%clk 0:00:05]}  g2 {[%clk 0:00:03]} 63. Rd3 {[%clk 0:00:02]}  Qb1+ {[%clk 0:00:03]} 64. Kc3 {[%clk 0:00:02]}  Qc1+ {[%clk 0:00:03]} 65. Kb3 {[%clk 0:00:02]}  g1=Q {[%clk 0:00:03]} 66. Bg3+ {[%clk 0:00:00]}  Qxg3 {[%clk 0:00:03]} 0-1


[Site "https://www.chess.com"]

[Event "Titled Tuesday Blitz July 11 Late 2023"]
[White "Moral Garcia, Serafin"]
[Black "GAO"]
[WhiteFideId "2201925"]
[WhiteElo "2552"]
[BlackElo "2408"]
[Result "1-0"]
[Round "9"]
[TimeControl "180+2"]
[Date "2023.07.11"]
[WhiteClock "0:00:55"]
[BlackClock "0:00:19"]
[Board "56"]

1. c4 {[%clk 0:02:54]}  e5 {[%clk 0:02:59]} 2. Nc3 {[%clk 0:02:54]}  Bb4 {[%clk 0:03:00]} 3. Nd5 {[%clk 0:02:54]}  Be7 {[%clk 0:03:00]} 4. d4 {[%clk 0:02:54]}  d6 {[%clk 0:02:59]} 5. e4 {[%clk 0:02:52]}  Nf6 {[%clk 0:02:57]} 6. dxe5 {[%clk 0:02:39]}  dxe5 {[%clk 0:02:57]} 7. Bd3 {[%clk 0:02:34]}  O-O {[%clk 0:02:55]} 8. Nf3 {[%clk 0:02:32]}  c6 {[%clk 0:02:54]} 9. Nxe7+ {[%clk 0:02:30]}  Qxe7 {[%clk 0:02:54]} 10. Bg5 {[%clk 0:02:29]}  Nbd7 {[%clk 0:02:48]} 11. O-O {[%clk 0:02:25]}  Nc5 {[%clk 0:02:46]} 12. Qe2 {[%clk 0:02:23]}  Bg4 {[%clk 0:02:44]} 13. h3 {[%clk 0:02:17]}  Bh5 {[%clk 0:02:41]} 14. Qe3 {[%clk 0:02:01]}  Rad8 {[%clk 0:02:36]} 15. Be2 {[%clk 0:02:00]}  Ncxe4 {[%clk 0:02:11]} 16. Qxe4 {[%clk 0:01:54]}  Bg6 {[%clk 0:01:41]} 17. Qh4 {[%clk 0:01:51]}  e4 {[%clk 0:01:38]} 18. Nd2 {[%clk 0:01:51]}  e3 {[%clk 0:01:08]} 19. Nf3 {[%clk 0:01:43]}  exf2+ {[%clk 0:01:06]} 20. Rxf2 {[%clk 0:01:44]}  Qc5 {[%clk 0:00:58]} 21. Bxf6 {[%clk 0:01:42]}  gxf6 {[%clk 0:00:55]} 22. Qxf6 {[%clk 0:01:24]}  Rde8 {[%clk 0:00:50]} 23. Qg5 {[%clk 0:01:23]}  Qb6 {[%clk 0:00:45]} 24. Bf1 {[%clk 0:01:18]}  Re6 {[%clk 0:00:30]} 25. c5 {[%clk 0:01:17]}  Qb4 {[%clk 0:00:28]} 26. a3 {[%clk 0:01:17]}  Qb3 {[%clk 0:00:26]} 27. Nd4 {[%clk 0:01:09]}  Qe3 {[%clk 0:00:22]} 28. Nxe6 {[%clk 0:01:08]}  Qxe6 {[%clk 0:00:23]} 29. Rd1 {[%clk 0:01:04]}  Re8 {[%clk 0:00:22]} 30. Rd8 {[%clk 0:01:02]}  h6 {[%clk 0:00:19]} 31. Rxe8+ {[%clk 0:01:01]}  Qxe8 {[%clk 0:00:19]} 32. Qxh6 {[%clk 0:01:01]}  Qe7 {[%clk 0:00:20]} 33. b4 {[%clk 0:00:58]}  a5 {[%clk 0:00:20]} 34. Bc4 {[%clk 0:00:55]}  axb4 {[%clk 0:00:19]} 35. Qxg6+ {[%clk 0:00:55]} 1-0


[Site "https://www.chess.com"]

[Event "Titled Tuesday Blitz July 11 Late 2023"]
[White "OllieAr"]
[Black "Rottenwohrer Suarez, Juan"]
[BlackFideId "32068182"]
[WhiteElo "2335"]
[BlackElo "2547"]
[Result "0-1"]
[Round "9"]
[TimeControl "180+2"]
[Date "2023.07.11"]
[WhiteClock "0:00:00"]
[BlackClock "0:00:08"]
[Board "58"]

1. Nf3 {[%clk 0:02:53]}  Nf6 {[%clk 0:02:59]} 2. c4 {[%clk 0:02:53]}  g6 {[%clk 0:03:00]} 3. Nc3 {[%clk 0:02:54]}  Bg7 {[%clk 0:03:00]} 4. d4 {[%clk 0:02:54]}  d6 {[%clk 0:02:59]} 5. e3 {[%clk 0:02:54]}  O-O {[%clk 0:02:58]} 6. Bd3 {[%clk 0:02:54]}  c5 {[%clk 0:02:58]} 7. d5 {[%clk 0:02:53]}  a6 {[%clk 0:02:53]} 8. O-O {[%clk 0:02:53]}  Bg4 {[%clk 0:02:35]} 9. h3 {[%clk 0:02:49]}  Bxf3 {[%clk 0:02:35]} 10. Qxf3 {[%clk 0:02:50]}  Nbd7 {[%clk 0:02:33]} 11. e4 {[%clk 0:02:47]}  Ne5 {[%clk 0:02:30]} 12. Qe2 {[%clk 0:02:47]}  Nxd3 {[%clk 0:02:31]} 13. Qxd3 {[%clk 0:02:48]}  Qa5 {[%clk 0:02:27]} 14. Bf4 {[%clk 0:02:42]}  Nd7 {[%clk 0:02:27]} 15. Bh2 {[%clk 0:02:37]}  Ne5 {[%clk 0:02:19]} 16. Qe2 {[%clk 0:02:36]}  Qb4 {[%clk 0:02:19]} 17. Bxe5 {[%clk 0:02:14]}  Bxe5 {[%clk 0:02:18]} 18. f4 {[%clk 0:02:01]}  Bg7 {[%clk 0:02:04]} 19. e5 {[%clk 0:01:52]}  b5 {[%clk 0:02:00]} 20. e6 {[%clk 0:00:53]}  Qxc4 {[%clk 0:01:37]} 21. Qxc4 {[%clk 0:00:34]}  bxc4 {[%clk 0:01:37]} 22. g4 {[%clk 0:00:35]}  Rab8 {[%clk 0:01:24]} 23. Rab1 {[%clk 0:00:28]}  fxe6 {[%clk 0:00:43]} 24. dxe6 {[%clk 0:00:26]}  Bxc3 {[%clk 0:00:44]} 25. bxc3 {[%clk 0:00:26]}  Rxb1 {[%clk 0:00:45]} 26. Rxb1 {[%clk 0:00:27]}  Rxf4 {[%clk 0:00:45]} 27. Rb8+ {[%clk 0:00:27]}  Kg7 {[%clk 0:00:45]} 28. Re8 {[%clk 0:00:27]}  Re4 {[%clk 0:00:24]} 29. Rxe7+ {[%clk 0:00:21]}  Kf6 {[%clk 0:00:24]} 30. Rxh7 {[%clk 0:00:18]}  Rxe6 {[%clk 0:00:20]} 31. Ra7 {[%clk 0:00:15]}  Re3 {[%clk 0:00:19]} 32. Rxa6 {[%clk 0:00:14]}  Ke5 {[%clk 0:00:17]} 33. h4 {[%clk 0:00:11]}  Rg3+ {[%clk 0:00:11]} 34. Kf2 {[%clk 0:00:10]}  Rxg4 {[%clk 0:00:12]} 35. Ra8 {[%clk 0:00:09]}  Rxh4 {[%clk 0:00:11]} 36. a4 {[%clk 0:00:09]}  Rh3 {[%clk 0:00:10]} 37. a5 {[%clk 0:00:08]}  Rxc3 {[%clk 0:00:10]} 38. a6 {[%clk 0:00:08]}  Ra3 {[%clk 0:00:10]} 39. a7 {[%clk 0:00:09]}  Kd5 {[%clk 0:00:11]} 40. Ke2 {[%clk 0:00:08]}  g5 {[%clk 0:00:11]} 41. Kd2 {[%clk 0:00:08]}  c3+ {[%clk 0:00:09]} 42. Kc2 {[%clk 0:00:08]}  Kc4 {[%clk 0:00:09]} 43. Kb1 {[%clk 0:00:03]}  d5 {[%clk 0:00:08]} 44. Kc1 {[%clk 0:00:00]}  d4 {[%clk 0:00:08]} 0-1


[Site "https://www.chess.com"]

[Event "Titled Tuesday Blitz July 11 Late 2023"]
[White "2KRK1"]
[Black "Bueno, Alfeu Junior Varela"]
[BlackFideId "2108879"]
[WhiteElo "2676"]
[BlackElo "2445"]
[Result "1-0"]
[Round "9"]
[TimeControl "180+2"]
[Date "2023.07.11"]
[WhiteClock "0:00:05"]
[BlackClock "0:00:00"]
[Board "60"]

1. Nf3 {[%clk 0:02:59]}  e6 {[%clk 0:02:57]} 2. b3 {[%clk 0:02:58]}  f5 {[%clk 0:02:57]} 3. Bb2 {[%clk 0:02:58]}  b6 {[%clk 0:02:58]} 4. g3 {[%clk 0:02:58]}  Bb7 {[%clk 0:02:58]} 5. Bg2 {[%clk 0:02:59]}  Nf6 {[%clk 0:02:59]} 6. O-O {[%clk 0:02:59]}  Be7 {[%clk 0:02:59]} 7. c4 {[%clk 0:03:00]}  O-O {[%clk 0:03:00]} 8. Nc3 {[%clk 0:02:59]}  Qe8 {[%clk 0:02:57]} 9. d4 {[%clk 0:02:59]}  d6 {[%clk 0:02:57]} 10. d5 {[%clk 0:02:56]}  e5 {[%clk 0:02:27]} 11. Ng5 {[%clk 0:02:53]}  Bc8 {[%clk 0:02:27]} 12. Ne6 {[%clk 0:02:04]}  Bxe6 {[%clk 0:02:26]} 13. dxe6 {[%clk 0:02:05]}  c6 {[%clk 0:02:20]} 14. e4 {[%clk 0:02:01]}  Qg6 {[%clk 0:01:47]} 15. exf5 {[%clk 0:01:50]}  Qxf5 {[%clk 0:01:48]} 16. Nb5 {[%clk 0:01:50]}  Na6 {[%clk 0:01:32]} 17. Nxd6 {[%clk 0:01:20]}  Qxe6 {[%clk 0:01:28]} 18. Ne4 {[%clk 0:01:20]}  Nxe4 {[%clk 0:01:20]} 19. Bxe4 {[%clk 0:01:21]}  Nc5 {[%clk 0:01:19]} 20. Qe2 {[%clk 0:01:21]}  Rae8 {[%clk 0:01:06]} 21. Rfe1 {[%clk 0:00:52]}  Nxe4 {[%clk 0:00:31]} 22. Qxe4 {[%clk 0:00:53]}  Bc5 {[%clk 0:00:31]} 23. Re2 {[%clk 0:00:49]}  Qf5 {[%clk 0:00:11]} 24. Qxf5 {[%clk 0:00:29]}  Rxf5 {[%clk 0:00:12]} 25. Rf1 {[%clk 0:00:26]}  Ref8 {[%clk 0:00:12]} 26. Kg2 {[%clk 0:00:24]}  Bd4 {[%clk 0:00:11]} 27. f3 {[%clk 0:00:18]}  Rd8 {[%clk 0:00:09]} 28. Bxd4 {[%clk 0:00:15]}  exd4 {[%clk 0:00:09]} 29. Rd1 {[%clk 0:00:15]}  Rf7 {[%clk 0:00:06]} 30. Rd3 {[%clk 0:00:13]}  Kf8 {[%clk 0:00:05]} 31. c5 {[%clk 0:00:12]}  bxc5 {[%clk 0:00:04]} 32. Rc2 {[%clk 0:00:05]}  Rd5 {[%clk 0:00:04]} 33. Rc4 {[%clk 0:00:05]}  Re7 {[%clk 0:00:03]} 34. Kf2 {[%clk 0:00:06]}  Rde5 {[%clk 0:00:02]} 35. Rd2 {[%clk 0:00:04]}  Ke8 {[%clk 0:00:02]} 36. Ra4 {[%clk 0:00:04]}  Kf7 {[%clk 0:00:02]} 37. Ra6 {[%clk 0:00:04]}  R5e6 {[%clk 0:00:00]} 38. Ra5 {[%clk 0:00:05]} 1-0


[Site "https://www.chess.com"]